bitfinex/quotes_ETHUSD_20220219
["timestamp","ask_amount","ask_price","bid_price","bid_amount"]
[1645232515384,0.55329801,2811.6,2811.3,0.04381635]
[1645232515837,0.63364615,2811.6,2811.4,1.51068075]
[1645232516437,0.63450089,2811.6,2811.4,1.51068075]
[1645232516942,0.66484903,2811.6,2811.5,3.5]
[1645232517141,0.08034814,2811.7,2811.5,3.5]
[1645232517142,0.08034814,2811.7,2811.6,6.31698446]
[1645232517343,0.08034814,2811.7,2811.6,7.82766521]
[1645232517540,3.90524318,2812.0,2811.6,7.82766521]
[1645232517744,3.90524318,2812.0,2811.7,1.51068075]
[1645232518041,3.90524318,2812.0,2811.8,1.1043946]
[1645232518240,3.90524318,2812.0,2811.9,1.51068075]
[1645232518641,2.56024318,2812.0,2811.9,1.51068075]
[1645232519241,4.318e-05,2812.0,2811.9,12.40068075]
[1645232519495,4.318e-05,2812.0,2811.9,1.51068075]
[1645232519688,4.318e-05,2812.0,2811.9,2.51068075]
[1645232519889,4.318e-05,2812.0,2811.9,6.01068075]
[1645232520291,4.318e-05,2812.0,2811.9,1.51068075]
[1645232520690,4.318e-05,2812.0,2811.9,1.51944402]
[1645232521393,4.318e-05,2812.0,2811.9,0.00876327]
[1645232521591,4.318e-05,2812.0,2811.9,0.01752654]
[1645232522192,4.318e-05,2812.0,2811.9,1.52786437]
[1645232522693,4.318e-05,2812.0,2811.9,1.53662764]
[1645232523093,3.60004318,2812.0,2811.9,1.53662764]
[1645232523737,3.60004318,2812.0,2811.9,1.54539091]
[1645232524642,3.60004318,2812.0,2811.9,1.55415418]
[1645232525238,3.60004318,2812.0,2811.9,0.04381635]
[1645232525637,3.60004318,2812.0,2811.9,0.05257962]
[1645232525840,3.60004318,2812.0,2811.9,1.56290595]
[1645232526241,3.60004318,2812.0,2811.9,6.06290595]
[1645232526437,3.60004318,2812.0,2811.9,15.95290595]
[1645232526638,3.60004318,2812.0,2811.9,17.55290595]
[1645232526837,3.60004318,2812.0,2811.9,19.34003922]
[1645232526838,1.40178612,2812.0,2811.9,19.34003922]
[1645232527092,1.40178612,2812.0,2811.9,19.70827595]
[1645232527297,1.91861339,2812.2,2812.1,11.267]
[1645232527493,1.91861339,2812.2,2812.1,16.27732633]
[1645232527692,1.91861339,2812.2,2812.1,6.98732633]
[1645232528696,1.91861339,2812.2,2812.1,18.76650633]
[1645232529095,1.91861339,2812.2,2812.1,7.87650633]
[1645232529296,1.91861339,2812.2,2812.1,6.98732633]
[1645232530298,1.91861339,2812.2,2812.1,3.48732633]
[1645232530498,2.04751247,2812.2,2812.1,3.48732633]
[1645232530747,1.91861339,2812.2,2812.1,17.87732633]
[1645232531139,1.91861339,2812.2,2812.1,18.76650633]
[1645232531640,2.04751247,2812.2,2812.1,18.76650633]
[1645232532042,0.32097541,2812.2,2812.1,18.76650633]
[1645232532242,9.48e-06,2812.3,2812.2,0.12872459]
[1645232532445,9.48e-06,2812.3,2812.2,24.18411092]
[1645232532641,0.08120288,2812.6,2812.4,11.267]
[1645232532940,0.08120288,2812.6,2812.5,18.46629633]
[1645232533139,0.08120288,2812.6,2812.5,16.95597]
[1645232533343,0.90583402,2813.8,2813.3,0.377]
[1645232533344,0.00482032,2813.8,2813.3,0.377]
[1645232533945,0.88721213,2813.8,2813.0,0.85794837]
[1645232534343,0.88721213,2813.8,2813.3,0.00876327]
[1645232535188,0.88721213,2813.8,2813.3,0.89771327]
[1645232535592,0.88721213,2813.8,2813.3,0.00876327]
[1645232536389,0.88721213,2813.8,2813.3,0.01752654]
[1645232536793,1.18721213,2813.8,2813.3,0.01752654]
[1645232536993,1.48721213,2813.8,2813.3,0.01752654]
[1645232537193,0.00237446,2813.7,2813.3,0.01752654]
[1645232537392,0.00237446,2813.7,2813.3,0.02628981]
[1645232537995,1.18721213,2813.8,2813.3,0.02628981]
[1645232538248,1.48721213,2813.8,2813.3,0.02628981]
[1645232538438,0.00237447,2813.6,2813.3,0.03505308]
[1645232539238,1.18721213,2813.8,2813.3,0.03505308]
[1645232539439,0.00237449,2813.6,2813.3,0.00876327]
[1645232540542,0.00482032,2813.8,2813.3,0.01752654]
[1645232540745,0.00224462,2813.6,2813.3,0.01752654]
[1645232541343,1.62955871,2813.9,2813.3,1.79547654]
[1645232541542,1.62955871,2813.9,2813.3,1.80423981]
[1645232541989,0.4970596,2813.9,2813.3,1.80423981]
[1645232542587,0.4970596,2813.9,2813.3,1.81300308]
[1645232542991,1.56108642,2813.9,2813.3,1.81300308]
[1645232543987,1.55232315,2813.9,2813.3,1.81300308]
[1645232545089,0.48829633,2813.9,2813.3,1.81300308]
[1645232545488,0.00243194,2813.7,2813.3,1.81300308]
[1645232545942,0.00243194,2813.7,2813.3,2.81300308]
[1645232546543,5.28179071,2813.9,2813.3,2.81300308]
[1645232547352,0.88918,2813.8,2813.3,0.03505308]
[1645232547545,1.88918,2813.8,2813.3,0.03505308]
[1645232547747,6.88918,2813.8,2813.3,0.03505308]
[1645232548146,6.88918,2813.8,2813.0,0.00876327]
[1645232548147,5.0,2813.6,2813.0,0.00876327]
[1645232548347,0.90335805,2813.2,2813.0,0.00876327]
[1645232548545,1.63161823,2813.1,2813.0,0.00876327]
[1645232548747,2.23161823,2813.1,2813.0,0.00876327]
[1645232549145,3.23161823,2813.1,2813.0,0.00876327]
[1645232549593,6.73161823,2813.1,2813.0,0.00876327]
[1645232550392,9.90371823,2813.1,2813.0,0.00876327]
[1645232550596,10.44803844,2813.1,2813.0,0.00876327]
[1645232551794,9.70583021,2813.1,2813.0,6.327e-05]
[1645232552293,5.66151,2813.1,2813.0,6.327e-05]
[1645232552494,6.558418,2813.1,2813.0,6.327e-05]
[1645232553348,5.66151,2813.1,2813.0,6.327e-05]
[1645232554842,6.558418,2813.1,2813.0,6.327e-05]
[1645232555441,5.66151,2813.1,2813.0,6.327e-05]
[1645232556844,5.61151,2813.1,2813.0,6.327e-05]
[1645232557688,9.01151,2813.1,2813.0,6.327e-05]
[1645232558689,9.908418,2813.1,2813.0,6.327e-05]
[1645232559090,9.01151,2813.1,2813.0,6.327e-05]
[1645232559492,9.908418,2813.1,2813.0,6.327e-05]
[1645232559692,10.43834102,2813.1,2813.0,6.327e-05]
[1645232562049,9.54143302,2813.1,2813.0,6.327e-05]
[1645232562344,8.54143302,2813.1,2813.0,6.327e-05]
[1645232562850,17.59523302,2813.1,2813.0,6.327e-05]
[1645232563047,17.59523302,2813.1,2812.0,0.03726635]
[1645232563048,15.03055612,2813.1,2812.0,0.03726635]
[1645232563347,15.03055612,2813.1,2812.0,0.03505308]
[1645232563348,1.7794755,2812.4,2812.0,0.03505308]
[1645232563549,1.54277538,2812.3,2812.0,0.03505308]
[1645232563745,1.54277538,2812.3,2812.0,0.03728095]
[1645232563946,2.54277538,2812.3,2812.0,0.02851768]
[1645232564594,2.54277538,2812.3,2812.0,0.02628981]
[1645232564595,3.43252538,2812.3,2812.0,0.02628981]
[1645232564793,3.28252538,2812.3,2812.0,0.02628981]
[1645232564993,3.27376211,2812.3,2812.0,0.02628981]
[1645232565201,5.0,2812.1,2810.4,0.66551779]
[1645232565395,9.0,2812.2,2810.4,0.66551779]
[1645232565396,0.889948,2811.5,2810.5,1.51071721]
[1645232565595,0.88992,2811.2,2810.5,1.51071721]
[1645232565793,1.77989,2811.6,2810.5,2.40059721]
[1645232565994,1.77989,2811.6,2810.6,1.51071721]
[1645232566298,1.18706014,2811.1,2810.6,1.51071721]
[1645232566696,0.88988,2811.5,2811.1,0.42441469]
[1645232566996,0.88989,2811.3,2811.1,0.42441469]
[1645232567398,1.7797878,2811.5,2811.1,0.42441469]
[1645232567598,2.07989,2811.6,2811.1,0.42441469]
[1645232567795,0.74864247,2811.3,2811.1,0.42441469]
[1645232568446,0.74864247,2811.3,2811.1,0.4265681]
[1645232569250,4.2455,2811.8,2811.1,0.4265681]
[1645232569251,3.0917,2811.8,2811.1,0.4265681]
[1645232569451,3.0917,2811.8,2811.1,0.42441469]
[1645232569649,3.0917,2811.8,2811.1,0.4265681]
[1645232570052,3.4,2811.3,2811.1,0.4265681]
[1645232570651,3.4,2811.3,2811.1,0.42441469]
[1645232570853,3.4,2811.3,2811.1,0.42644499]
[1645232571151,0.74864247,2811.2,2811.1,0.42644499]
[1645232571554,3.4,2811.3,2811.1,0.42644499]
[1645232571753,3.4,2811.3,2811.1,0.42441469]
[1645232572588,4.14864247,2811.3,2811.1,0.42441469]
[1645232572790,4.14864247,2811.3,2811.1,1.31415469]
[1645232572989,3.4,2811.3,2811.1,1.31415469]
[1645232573191,3.4,2811.3,2811.1,1.31621736]
[1645232574192,3.4,2811.3,2811.1,1.31415469]
[1645232574394,0.74864247,2811.2,2811.1,1.31622564]
[1645232575394,0.74864247,2811.2,2811.1,1.31415469]
[1645232577145,0.74864247,2811.2,2811.1,0.42441469]
[1645232578544,3.4,2811.3,2811.1,0.42441469]
[1645232579143,3.4,2811.3,2811.1,0.42647898]
[1645232580002,4.14864247,2811.3,2811.1,0.42647898]
[1645232580204,4.14864247,2811.3,2811.1,0.42441469]
[1645232580402,4.14864247,2811.3,2811.1,0.42647977]
[1645232581403,4.14864247,2811.3,2811.1,0.42441469]
[1645232581605,3.4,2811.3,2811.1,0.42648005]
[1645232582602,3.4,2811.3,2811.1,0.42441469]
[1645232582803,3.4,2811.3,2811.1,0.42648005]
[1645232583843,3.4,2811.3,2811.1,0.42441469]
[1645232584039,3.4,2811.3,2811.1,0.42647993]
[1645232585042,3.4,2811.3,2811.1,1.31415469]
[1645232585242,3.4,2811.3,2811.1,1.31622812]
[1645232586242,3.4,2811.3,2811.1,1.31415469]
[1645232586444,3.4,2811.3,2811.1,1.31622812]
[1645232586988,1.78868426,2811.3,2811.1,1.31622812]
[1645232587390,1.78868426,2811.3,2811.1,1.31415469]
[1645232587789,1.78868426,2811.3,2811.1,12.20415469]
[1645232587991,1.78868426,2811.3,2811.1,1.61415469]
[1645232588196,1.78868426,2811.3,2811.1,1.31415469]
[1645232588692,1.78868426,2811.3,2811.1,12.20415469]
[1645232588890,1.78868426,2811.3,2811.1,1.31415469]
[1645232589295,1.78868426,2811.3,2811.2,3.5]
[1645232589796,1.78868426,2811.3,2811.2,15.69]
[1645232589992,1.78868426,2811.3,2811.2,17.20044106]
[1645232589993,8.426e-05,2811.3,2811.2,17.20044106]
[1645232590198,0.91068918,2812.8,2811.4,10.89]
[1645232590199,0.00969948,2812.8,2811.4,10.89]
[1645232590394,0.00969948,2812.8,2811.6,11.77931]
[1645232590395,0.00490326,2812.8,2811.6,11.77931]
[1645232590594,0.00490326,2812.8,2811.7,5.01044106]
[1645232590849,0.91491775,2813.2,2812.0,10.89]
[1645232590850,0.00479622,2813.1,2812.0,10.89]
[1645232591047,0.01392805,2813.2,2812.6,11.78612245]
[1645232591243,0.01392805,2813.2,2812.6,12.49362245]
[1645232591444,0.01392805,2813.2,2812.7,1.77807]
[1645232592041,0.01392805,2813.2,2812.7,2.77807]
[1645232592240,3.41392805,2813.2,2812.7,2.77807]
[1645232592446,0.00479622,2813.1,2812.7,3.6671182]
[1645232593044,0.00479622,2813.1,2812.7,2.6671182]
[1645232593844,0.01392805,2813.2,2812.7,1.7780882]
[1645232594246,0.01392805,2813.2,2812.7,16.1680882]
[1645232594498,0.01392805,2813.2,2812.8,0.3]
[1645232594698,0.01392805,2813.2,2812.8,13.07909]
[1645232594898,0.01392805,2813.2,2812.8,2.18909]
[1645232596701,0.01392805,2813.2,2812.8,13.07909]
[1645232596902,0.01392805,2813.2,2812.9,3.5]
[1645232597102,0.01392805,2813.2,2812.8,4.68909]
[1645232597403,0.01392805,2813.2,2812.8,5.68909]
[1645232597902,0.01392805,2813.2,2812.8,2.18909]
[1645232602088,0.01392805,2813.2,2812.8,1.88909]
[1645232602287,0.01392805,2813.2,2812.8,4.38909]
[1645232602488,0.01392805,2813.2,2812.8,0.88909]
[1645232602694,0.01392805,2813.2,2812.9,3.5]
[1645232602890,0.01392805,2813.2,2812.9,5.278]
[1645232603189,0.01392805,2813.2,2813.0,0.89739442]
[1645232603392,0.01392805,2813.2,2813.0,1.89739442]
[1645232603990,0.01392805,2813.2,2813.1,3.5]
[1645232604189,0.01392805,2813.2,2813.0,1.78633442]
[1645232604389,0.01392805,2813.2,2813.0,0.88894]
[1645232605393,0.01392805,2813.2,2812.7,1.88904]
[1645232605593,0.01392805,2813.2,2812.9,0.88911]
[1645232606638,0.00479622,2813.5,2812.9,0.88911]
[1645232607440,0.0421924,2813.6,2812.9,0.88911]
[1645232607845,1.72742027,2813.8,2812.9,0.88911]
[1645232608039,0.88825745,2813.6,2812.9,0.88911]
[1645232609147,0.88825745,2813.6,2812.5,0.10294453]
[1645232609148,4.15596785,2813.6,2812.5,0.10294453]
[1645232609344,1.7785957,2813.3,2812.5,0.10294453]
[1645232609594,0.8893157,2813.3,2812.5,0.10294453]
[1645232609794,1.1893157,2813.3,2812.5,0.10294453]
[1645232610397,0.4893,2813.1,2812.8,0.0022213]
[1645232610895,0.8893523,2813.0,2812.8,0.0022213]
[1645232611393,0.8893523,2813.0,2812.5,0.10294453]
[1645232611594,0.8893523,2813.0,2812.8,0.0022213]
[1645232612495,0.8893523,2813.0,2812.5,0.10294453]
[1645232612697,0.88936,2812.9,2812.5,0.10294453]
[1645232612894,0.88936,2812.9,2812.8,0.0022213]
[1645232613740,0.88936,2812.9,2812.5,0.10294453]
[1645232613939,0.88929,2813.1,2812.5,0.10294453]
[1645232614140,0.4776,2813.3,2812.7,0.00222247]
[1645232614340,0.1776,2813.3,2812.7,0.00222247]
[1645232614740,1.7785,2813.5,2812.7,0.00222247]
[1645232614939,1.7785,2813.5,2812.5,0.10294453]
[1645232615240,2.66771,2813.5,2812.9,0.00222241]
[1645232615645,0.88919,2813.4,2812.9,0.00222241]
[1645232616144,0.88919,2813.4,2812.6,12.03144241]
[1645232616543,0.88919,2813.4,2813.0,0.00222236]
[1645232617393,0.88919,2813.4,2812.8,0.88916]
[1645232617592,0.88919,2813.4,2812.8,0.89020183]
[1645232617992,0.88919,2813.4,2812.8,0.00104183]
[1645232618594,0.88919,2813.4,2812.6,10.89]
[1645232618794,0.88919,2813.4,2812.8,0.00104183]
[1645232618994,0.88919,2813.4,2812.8,1.17366585]
[1645232619794,0.88919,2813.4,2812.8,1.17262402]
[1645232619995,0.88919,2813.4,2812.8,0.0024246]
[1645232620296,0.88919,2813.4,2812.8,0.8915746]
[1645232620495,0.88919,2813.4,2812.8,0.0024246]
[1645232620940,0.88919,2813.4,2812.6,10.89]
[1645232621138,0.88919,2813.4,2812.8,0.00104016]
[1645232622141,0.88919,2813.4,2812.3,0.1776]
[1645232622142,3.26769,2813.4,2812.3,0.1776]
[1645232622342,0.88941,2813.1,2812.8,0.00104016]
[1645232622544,1.48941,2813.1,2812.8,0.00104016]
[1645232623344,6.77891,2813.0,2811.7,0.1776]
[1645232623540,0.88969,2812.4,2811.4,0.1776]
[1645232623742,0.88969,2812.4,2811.3,0.00416287]
[1645232624141,0.6,2812.3,2811.3,0.00416287]
[1645232624341,4.1,2812.3,2811.3,0.00416287]
[1645232624596,1.77941,2812.1,2811.3,0.92053217]
[1645232624796,1.77941,2812.1,2811.7,0.00242192]
[1645232625602,0.1778,2812.6,2811.7,0.00242192]
[1645232625798,0.1778,2812.6,2811.8,1.12075111]
[1645232626001,0.4778,2812.6,2811.8,1.12075111]
[1645232626295,0.4778,2812.6,2811.8,1.12317299]
[1645232626497,0.1776,2812.5,2811.8,1.12317299]
[1645232626697,0.1776,2812.6,2811.8,0.89189188]
[1645232626897,0.1776,2812.6,2811.4,1.77893]
[1645232626898,1.95661,2812.6,2811.4,1.77893]
[1645232627096,1.95661,2812.6,2811.5,1.51026894]
[1645232627097,0.88814,2812.6,2811.5,1.51026894]
[1645232627401,0.88814,2812.6,2812.1,0.00242177]
[1645232627906,0.88956,2812.4,2812.1,0.00242177]
[1645232628098,1.77917,2812.4,2812.1,0.00242177]
[1645232628347,1.77917,2812.4,2811.6,1.51029445]
[1645232628553,1.77917,2812.4,2812.1,0.00242175]
[1645232629151,0.88948,2812.6,2812.1,0.00242175]
[1645232629346,0.88948,2812.6,2811.8,0.88948]
[1645232629747,0.88948,2812.6,2811.5,0.96076962]
[1645232629748,0.88948,2812.6,2812.1,0.00242175]
[1645232630348,1.77902,2812.6,2812.1,0.00242175]
[1645232630849,1.77902,2812.6,2812.2,0.00242172]
[1645232630850,0.88953,2812.4,2812.2,0.00242172]
[1645232631054,0.88954,2812.6,2812.2,0.00242172]
[1645232631250,1.95691,2812.7,2812.2,0.00242172]
[1645232631251,2.8463898,2812.7,2812.2,0.00242172]
[1645232631449,1.0672798,2812.7,2812.2,0.00242172]
[1645232631849,0.88947,2812.6,2811.8,0.88948]
[1645232632099,3.3235,2812.8,2812.3,0.00242168]
[1645232632298,0.1776,2812.8,2812.3,0.00242168]
[1645232632501,0.1776,2813.2,2812.3,0.00242168]
[1645232632701,0.90341023,2813.6,2812.5,0.93473709]
[1645232632899,0.1776,2813.5,2812.5,0.93473709]
[1645232633099,0.90341023,2813.6,2812.6,0.3]
[1645232633100,1.7901497,2813.6,2812.6,0.3]
[1645232633303,0.89158083,2813.6,2812.8,0.00242159]
[1645232633500,0.89158083,2813.6,2812.8,0.89159159]
[1645232633897,0.89158083,2813.6,2812.8,0.00242159]
[1645232634300,1.7901497,2813.6,2812.6,3.8]
[1645232634599,1.7925706,2813.6,2812.8,0.00242166]
[1645232635000,1.7925706,2813.6,2812.8,0.89160166]
[1645232635403,3.5685644,2813.6,2812.8,0.88918]
[1645232635603,2.6793497,2813.6,2812.8,0.88918]
[1645232635846,0.89150101,2813.6,2812.8,0.89152175]
[1645232636444,0.89150101,2813.6,2813.0,0.95916792]
[1645232636645,1.1638,2813.7,2813.0,1.84827792]
[1645232636845,0.88911,2813.8,2813.0,1.84827792]
[1645232637043,0.00234101,2813.6,2813.0,1.84827792]
[1645232637646,0.89150101,2813.6,2812.8,0.00234175]
[1645232637847,1.7901497,2813.6,2812.7,1.77821]
[1645232638244,0.89150106,2813.6,2812.8,0.0023418]
[1645232638447,0.00477224,2813.5,2812.8,0.0023418]
[1645232639045,0.00477224,2813.5,2812.7,1.77821]
[1645232639248,0.00477224,2813.5,2812.8,0.00223457]
[1645232639697,0.88923,2813.4,2812.8,0.00223457]
[1645232639898,0.00477224,2813.3,2812.8,0.00223457]
[1645232640294,0.00477224,2813.3,2812.3,1.77841]
[1645232640496,0.00477224,2813.3,2812.8,0.00223453]
[1645232641499,0.00477224,2813.3,2812.6,0.88921]
[1645232641696,0.00477224,2813.3,2812.8,0.00223453]
[1645232642703,0.00477224,2813.3,2812.3,1.77841]
[1645232642704,0.88929,2813.2,2812.3,1.77841]
[1645232642899,1.18929,2813.2,2812.8,0.0022502]
[1645232643100,0.9009897,2813.1,2812.8,0.0022502]
[1645232643349,0.9009897,2813.0,2812.8,0.0022502]
[1645232643544,0.1776,2812.9,2812.8,0.0022502]
[1645232643741,1.0785897,2812.9,2812.8,0.0022502]
[1645232643939,1.0785897,2812.9,2811.5,1.5102736]
[1645232643940,0.88965,2812.5,2811.5,1.5102736]
[1645232644148,2.3785897,2812.9,2811.5,1.5102736]
[1645232644149,2.668974,2812.3,2811.5,1.5102736]
[1645232644341,2.968974,2812.3,2811.6,1.5102736]
[1645232644639,2.968974,2812.3,2811.7,1.5102736]
[1645232644841,2.968974,2812.3,2811.3,4.30064091]
[1645232645042,2.968974,2812.3,2811.4,1.51035211]
[1645232645242,1.77934,2812.1,2811.9,0.0022504]
[1645232646241,1.77934,2812.1,2811.4,1.51035211]
[1645232646646,1.77934,2812.1,2811.9,0.0022498]
[1645232647493,1.77934,2812.1,2811.5,1.51035211]
[1645232647895,0.88966,2812.1,2811.5,1.51035211]
[1645232650093,0.88966,2812.1,2811.7,0.00241975]
[1645232650295,2.07919,2812.3,2812.0,0.02439419]
[1645232650759,3.37919,2812.3,2812.0,0.02439419]
[1645232650951,2.37919,2812.3,2812.0,0.02439419]
[1645232651148,1.0,2812.2,2812.0,0.02439419]
[1645232651349,3.37919,2812.3,2812.0,0.02439419]
[1645232651951,0.88958,2812.3,2812.0,0.02439419]
[1645232652951,3.2421,2812.8,2812.0,0.02439419]
[1645232652952,2.66859,2812.7,2812.0,0.02439419]
[1645232653149,3.2421,2812.8,2812.0,0.91862963]
[1645232653349,1.1571,2812.9,2812.0,0.91862963]
[1645232653549,0.9009897,2813.0,2812.5,0.91699158]
[1645232653757,0.00477224,2813.3,2812.5,0.91699158]
[1645232653951,0.1776,2813.5,2812.5,1.70659158]
[1645232653952,0.9009897,2813.5,2812.5,1.70659158]
[1645232654151,0.00477224,2813.3,2812.5,1.70659158]
[1645232654505,0.00477224,2813.5,2813.0,0.8891]
[1645232654696,0.90576194,2813.5,2813.0,0.8891]
[1645232654898,0.9009897,2813.5,2813.0,0.8891]
[1645232655099,0.00241872,2813.5,2813.0,0.8891]
[1645232655298,0.00719096,2813.5,2812.7,1.77819]
[1645232655903,0.00477224,2813.5,2812.7,1.77819]
[1645232656099,0.00719106,2813.5,2812.7,1.77819]
[1645232656502,0.9009897,2813.6,2812.7,1.77819]
[1645232656503,0.85818076,2813.6,2812.7,1.77819]
[1645232656900,0.00967416,2813.8,2812.7,5.27819]
[1645232657105,4.69361,2813.9,2812.7,5.27819]
[1645232657498,0.88915,2813.7,2812.7,5.27819]
[1645232658541,0.88915,2813.7,2812.7,1.77819]
[1645232658743,3.0926967,2813.9,2812.7,1.77819]
[1645232658946,3.0926967,2813.9,2812.7,5.27819]
[1645232659142,3.3926967,2813.9,2812.7,5.27819]
[1645232659350,3.0926967,2813.9,2812.8,0.3]
[1645232659542,3.0926967,2813.9,2813.0,0.8891]
[1645232659751,0.00241878,2813.6,2813.0,0.8891]
[1645232660643,0.88915,2813.7,2813.0,0.8891]
[1645232661042,0.00241878,2813.6,2813.0,0.8891]
[1645232661846,0.88915,2813.7,2813.0,0.8891]
[1645232662303,0.00241878,2813.6,2813.0,0.8891]
[1645232662998,0.00241878,2813.6,2813.1,1.09130081]
[1645232663196,0.88915,2813.7,2813.1,1.09130081]
[1645232663396,0.00241878,2813.6,2813.1,1.09130081]
[1645232663598,0.00241878,2813.6,2812.9,0.92167776]
[1645232663799,1.77845,2813.5,2812.9,0.03252776]
[1645232663997,2.07845,2813.5,2812.9,0.03252776]
[1645232664397,2.07845,2813.5,2812.9,0.03010834]
[1645232664698,2.07864,2813.4,2812.9,0.03252771]
[1645232664902,0.88931,2813.3,2812.9,0.03252771]
[1645232665097,0.88931,2813.3,2812.9,0.00241937]
[1645232665299,1.18931,2813.3,2812.9,0.00241937]
[1645232665500,0.2,2813.3,2812.8,0.02402454]
[1645232665755,0.9003565,2813.5,2812.9,0.89156932]
[1645232665946,0.00241868,2813.6,2812.9,0.89156932]
[1645232666647,1.79918084,2813.8,2812.9,4.38915]
[1645232666648,0.9003565,2813.8,2812.9,4.38915]
[1645232667050,0.00241876,2813.6,2813.3,0.86524516]
[1645232668149,0.00241886,2813.6,2813.0,1.77803]
[1645232669150,1.7894465,2813.9,2813.2,0.97460209]
[1645232669352,0.00241878,2813.6,2813.2,0.97460209]
[1645232670399,0.88909,2813.9,2813.2,0.97460209]
[1645232670603,0.00241883,2813.6,2813.2,0.97460209]
[1645232670801,0.00241883,2813.6,2813.1,0.04001639]
[1645232671601,0.88915,2813.7,2813.1,0.04001639]
[1645232671804,0.00241881,2813.6,2813.1,1.00967215]
[1645232672702,2.6673768,2813.9,2813.1,1.00967215]
[1645232673002,0.00241881,2813.6,2813.1,1.00967215]
[1645232674044,8.3903565,2814.0,2813.1,1.00967215]
[1645232674243,8.3903565,2814.0,2813.1,1.89875215]
[1645232674244,0.00241881,2813.6,2813.1,1.89875215]
[1645232674647,0.00241881,2813.6,2813.2,0.30538248]
[1645232675049,0.00241881,2813.6,2813.2,1.30538248]
[1645232675246,3.1103,2814.2,2813.3,0.05990605]
[1645232675446,3.1103,2814.2,2813.7,1.16066168]
[1645232675645,0.56482705,2814.4,2813.7,1.16066168]
[1645232676443,0.56482705,2814.4,2813.5,1.77764]
[1645232676849,0.56482705,2814.4,2813.8,11.77884]
[1645232676850,0.01870848,2814.4,2813.8,11.77884]
[1645232677101,0.01870848,2814.4,2813.9,10.89]
[1645232677297,0.01870848,2814.4,2813.9,12.49]
[1645232677605,0.01870848,2814.4,2813.9,4.2656389]
[1645232677799,0.01870848,2814.4,2813.9,1.77709]
[1645232678299,0.01870848,2814.4,2814.0,0.88867]
[1645232678498,0.01870848,2814.4,2814.0,1.18867]
[1645232678699,0.01870848,2814.4,2814.0,2.18867]
[1645232679101,0.00241563,2814.3,2814.0,2.18867]
[1645232679301,0.00241563,2814.3,2814.0,0.88867]
[1645232679900,0.00241563,2814.3,2813.9,1.77709]
[1645232680102,0.01870848,2814.4,2813.9,1.77709]
[1645232680302,0.00241565,2814.3,2814.0,0.02973855]
[1645232681152,0.01870848,2814.4,2814.0,0.02973855]
[1645232681553,0.00241565,2814.3,2814.0,0.02973855]
[1645232682157,0.00241565,2814.3,2814.0,0.91853855]
[1645232682354,0.01870848,2814.4,2814.0,0.91853855]
[1645232682554,0.01870848,2814.4,2814.0,0.02973855]
[1645232682760,0.00241565,2814.3,2814.0,0.02973855]
[1645232683555,0.01870848,2814.4,2814.0,0.02973855]
[1645232683754,0.01870848,2814.4,2814.0,0.91853855]
[1645232683953,0.00241565,2814.3,2814.0,0.91853855]
[1645232684357,0.00241565,2814.3,2814.0,0.02973855]
[1645232684800,3.8,2814.3,2814.0,0.02973855]
[1645232685197,0.1776,2814.2,2814.0,0.02973855]
[1645232685401,1.1776,2814.2,2814.0,0.02973855]
[1645232685998,0.1776,2814.2,2814.0,0.02973855]
[1645232686197,1.18001567,2814.2,2814.0,0.02973855]
[1645232686496,0.18001567,2814.2,2814.0,0.02973855]
[1645232686696,1.18001567,2814.2,2814.0,0.02973855]
[1645232688554,1.1776,2814.2,2814.0,0.02973855]
[1645232688752,1.18001567,2814.2,2814.0,0.02973855]
[1645232689554,1.0,2814.2,2814.0,0.02973855]
[1645232689954,1.00241567,2814.2,2814.0,0.02973855]
[1645232690858,1.0,2814.2,2814.0,0.02973855]
[1645232691055,1.00241567,2814.2,2814.0,0.02973855]
[1645232691259,0.00241567,2814.2,2814.0,0.02973855]
[1645232692096,5.05001078,2814.3,2814.0,0.02973855]
[1645232692301,0.00241567,2814.2,2814.0,0.02973855]
[1645232693303,4.45001078,2814.3,2814.0,0.02973855]
[1645232693497,0.00241567,2814.2,2814.0,0.02973855]
[1645232694498,4.45001078,2814.3,2814.0,0.02973855]
[1645232694700,0.00241567,2814.2,2814.0,0.02973855]
[1645232695745,2.67171228,2814.3,2814.0,0.02973855]
[1645232695949,0.00241567,2814.2,2814.0,0.02973855]
[1645232696847,3.57206878,2814.3,2814.0,0.02973855]
[1645232697044,0.00241567,2814.2,2814.0,0.02973855]
[1645232698146,0.00474838,2814.3,2814.0,0.02973855]
[1645232698346,0.00241567,2814.2,2814.0,0.02973855]
[1645232698553,0.00241567,2814.2,2814.0,0.02865244]
[1645232698848,0.00241567,2814.2,2814.0,1.0454977]
[1645232699246,0.01870848,2814.4,2814.0,1.6454977]
[1645232699497,0.01870848,2814.4,2814.0,2.6454977]
[1645232699700,0.01870848,2814.4,2814.0,1.0454977]
[1645232699899,0.01870848,2814.4,2814.1,1.0]
[1645232700097,8.48e-06,2814.4,2814.1,4.5]
[1645232701305,8.48e-06,2814.4,2814.2,11.89]
[1645232701503,8.48e-06,2814.4,2814.2,12.49]
[1645232701700,8.48e-06,2814.4,2814.3,14.39]
[1645232701901,8.48e-06,2814.4,2814.3,15.39]
[1645232702101,0.00234137,2814.4,2814.3,4.5]
[1645232702302,0.00234137,2814.4,2814.3,3.5]
[1645232702702,0.00234137,2814.4,2814.1,4.3885]
[1645232702902,8.48e-06,2814.4,2814.1,5.3885]
[1645232703349,8.48e-06,2814.4,2814.2,0.6]
[1645232703849,8.48e-06,2814.4,2814.3,3.5]
[1645232704243,8.48e-06,2814.4,2814.3,14.39]
[1645232704446,0.0022345,2814.4,2814.3,15.39]
[1645232704845,0.0022345,2814.4,2814.3,3.5]
[1645232705249,8.48e-06,2814.4,2814.3,4.8]
[1645232705451,8.48e-06,2814.4,2814.3,14.69]
[1645232705758,0.11,2815.0,2814.4,5.64449551]
[1645232705759,0.00474838,2815.0,2814.4,5.64449551]
[1645232705950,0.9003565,2815.6,2814.9,10.89]
[1645232706153,0.00668992,2815.6,2815.1,10.89]
[1645232706353,0.00668992,2815.6,2815.3,10.89]
[1645232706748,0.00222271,2815.5,2815.4,2.13558096]
[1645232707000,0.00222271,2815.5,2815.4,2.43558096]
[1645232707203,0.07784725,2815.9,2815.5,5.5]
[1645232707204,0.00448992,2815.9,2815.5,5.5]
[1645232707408,0.0119325,2816.3,2815.8,0.01295452]
[1645232707604,0.0119325,2816.3,2815.9,10.89]
[1645232707806,0.0119325,2816.3,2815.9,12.37796]
[1645232708009,0.0119325,2816.3,2815.8,1.6546]
[1645232708206,0.0119325,2816.3,2816.0,1.17984264]
[1645232708403,0.0119325,2816.3,2816.1,0.88813]